fUSD/lending_fUSD_20251102
["ID","MTS","AMOUNT","RATE_DAILY","PERIOD"]
[392874980,1762101764874,-279.80872868,0.00014647,2]
[392874981,1762101764934,-216.66254296,0.00014647,2]
[392874982,1762101764944,-221.66766337,0.00014652,2]
[392874983,1762101764954,-150.0,0.00014654,2]
[392874984,1762101764964,-209.74707313,0.00014655,2]
[392874985,1762101764999,-181.55234973,0.00014655,2]
[392874986,1762101765026,-161.43464776,0.00014655,2]
[392874987,1762101765055,-169.45326563,0.00014655,2]
[392874988,1762101765082,-231.10836625,0.00014655,2]
[392874989,1762101765113,-500.0,0.00014655,2]
[392874990,1762101765144,-500.0,0.00014655,2]
[392874991,1762101765176,-500.0,0.00014655,2]
[392874992,1762101765206,-500.0,0.00014655,2]
[392874993,1762101765235,-500.0,0.00014655,2]
[392874994,1762101765266,-164.65230587,0.00014655,2]
[392874995,1762101765297,-500.0,0.00014655,2]
[392874996,1762101765327,-500.0,0.00014655,2]
[392874997,1762101765358,-500.0,0.00014655,2]
[392874998,1762101765597,-518.64451112,0.00014655,2]
[392874999,1762101765633,-500.0,0.00014655,2]
[392875000,1762101765668,-500.0,0.00014655,2]
[392875001,1762101765704,-500.0,0.00014655,2]
[392875002,1762101765738,-500.0,0.00014655,2]
[392875003,1762101765773,-500.0,0.00014655,2]
[392875004,1762101765806,-500.0,0.00014655,2]
[392875005,1762101765839,-500.0,0.00014655,2]
[392875006,1762101765869,-500.0,0.00014655,2]
[392875007,1762101765904,-175.53528968,0.00014655,2]
[392875008,1762101766184,-111.6503984,0.00014655,2]
[392875009,1762101766433,-388.3496016,0.00014655,2]
[392875010,1762101766463,-500.0,0.00014655,2]
[392875011,1762101766492,-500.0,0.00014655,2]
[392875012,1762101766521,-500.0,0.00014655,2]
[392875013,1762101766551,-500.0,0.00014655,2]
[392875014,1762101766579,-2457.27,0.00014655,2]
[392875015,1762101769409,276.94393367,0.00014556,2]
[392875016,1762101771716,31.82686313,0.00014448,2]
[392875017,1762101771739,5165.79003787,0.00014448,2]
[392875018,1762101909359,200.0,0.00013841,2]
[392875019,1762101914434,150.0,0.00013488,2]
[392875020,1762101914727,150.0,0.00014237,2]
[392875021,1762101914803,150.0,0.00013488,2]
[392875022,1762101914873,150.0,0.00013862,2]
[392875023,1762101914928,150.0,0.00014237,2]
[392875024,1762101915007,150.0,0.00013488,2]
[392875025,1762101915084,150.0,0.00014237,2]
[392875026,1762101920570,150.0,0.00013488,2]
[392875027,1762101920622,150.0,0.00013987,2]
[392875028,1762101920686,150.0,0.00014487,2]
[392875029,1762101921062,150.0,0.00013488,2]
[392875030,1762101921156,150.0,0.00013488,2]
[392875031,1762101921218,150.0,0.00014237,2]
[392875032,1762101922966,150.0,0.00013488,2]
[392875033,1762101923034,150.0,0.00013737,2]
[392875034,1762101923069,150.0,0.00013987,2]
[392875035,1762101923134,150.0,0.00014237,2]
[392875036,1762101923202,150.0,0.00014487,2]
[392875037,1762101926999,150.0,0.00013488,2]
[392875038,1762101932438,150.0,0.00013488,2]
[392875039,1762101932499,150.0,0.00013488,2]
[392875040,1762101933303,-300.0,0.00014555,2]
[392875041,1762101933345,-300.0,0.00014555,2]
[392875042,1762101933386,-1200.0,0.00014555,2]
[392875043,1762101933426,-380.1857,0.00014556,2]
[392875044,1762101933466,-632.86043599,0.00014556,2]
[392875045,1762101933722,-4367.2485541,0.00014556,2]
[392875046,1762101933777,-1265.5128918,0.00014556,2]
[392875047,1762101933817,-1836.22277057,0.00014594,2]
[392875048,1762101933947,-3796.53867526,0.00014594,2]
[392875049,1762101933959,-150.0,0.00014612,2]
[392875050,1762101933971,-14.86978515,0.00014632,2]
[392875051,1762101934019,-4382.11833932,0.00014632,2]
[392875052,1762101934069,-1235.77332136,0.00014632,2]
[392875053,1762101934122,-500.0,0.00014655,2]
[392875054,1762101934167,-500.0,0.00014655,2]
[392875055,1762101934211,-408.79507504,0.00014655,2]
[392875056,1762101934253,-500.0,0.00014655,2]
[392875057,1762101934293,-150.0,0.00014655,2]
[392875058,1762101934333,-2354.88,0.00014655,2]
[392875059,1762101934372,-414.44,0.00014655,2]
[392875060,1762101934467,150.0,0.00013488,2]
[392875061,1762101936744,150.0,0.00013488,2]
[392875062,1762101963121,1635.63,0.00014037,2]
[392875063,1762101970871,298.81171507,0.00013914,2]
[392875064,1762101970891,1201.18828493,0.00013914,2]
[392875065,1762102012626,827.24,6.945e-05,2]
[392875066,1762102012819,827.24,7.311e-05,2]
[392875067,1762102013017,827.24,7.676e-05,2]
[392875068,1762102013237,827.24,8.042e-05,2]
[392875069,1762102013436,827.24,8.407e-05,2]
[392875070,1762102013633,827.24,8.773e-05,2]
[392875071,1762102013837,827.24,9.138e-05,2]
[392875072,1762102014044,827.24,9.504e-05,2]
[392875073,1762102014739,827.24,9.869e-05,2]
[392875074,1762102014788,827.24,0.00010235,2]
[392875075,1762102014911,827.24,0.000106,2]
[392875076,1762102014985,827.24,0.00010966,2]
[392875077,1762102015432,827.24,0.00011331,2]
[392875078,1762102015667,827.24,0.00011697,2]
[392875079,1762102015846,827.24,0.00012063,2]
[392875080,1762102016053,827.24,0.00012428,2]
[392875081,1762102016464,562.97171507,0.00012794,2]
[392875082,1762102016483,264.26828493,0.00012794,2]
[392875083,1762102016709,827.24,0.00013159,2]
[392875084,1762102016926,827.24,0.00013525,2]
[392875085,1762102017139,827.24,0.0001389,2]
[392875086,1762102027035,-166.66666666,0.00014555,2]
[392875087,1762102027064,-300.0,0.0001462,2]
[392875088,1762102027135,-8766.67666668,0.00014621,2]
[392875089,1762102027298,-10000.01,0.00014621,2]
[392875090,1762102027408,-10000.01,0.00014621,2]
[392875091,1762102027566,-10000.01,0.00014621,2]
[392875092,1762102027670,-10000.01,0.00014621,2]
[392875093,1762102027934,-3193.87617288,0.00014621,2]
[392875094,1762102027964,-3612.25765424,0.00014621,2]
[392875095,1762102028162,-626.08232765,0.00014655,2]
[392875096,1762102042603,496.47127164,0.00014647,2]
[392875097,1762102057107,8099.04,0.00013927,2]
[392875099,1762102104274,-553.75288143,0.00014556,2]
[392875100,1762102104313,-1200.0,0.00014655,2]
[392875101,1762102104351,-150.0,0.00014655,2]
[392875102,1762102104772,249.24954024,0.00014571,2]
[392875105,1762102113744,200.0,0.00013918,2]
[392875107,1762102150621,452.6,0.00030136,120]
[392875108,1762102152168,-9054.28918812,0.0001462,2]
[392875109,1762102152230,-10000.01,0.0001462,2]
[392875110,1762102152314,-10000.01,0.0001462,2]
[392875111,1762102152429,-10000.01,0.0001462,2]
[392875112,1762102152754,-10000.01,0.0001462,2]
[392875113,1762102152885,-10000.01,0.0001462,2]
[392875114,1762102152984,-2200.50348338,0.0001462,2]
[392875115,1762102153014,-500.0,0.00014655,2]
[392875116,1762102157579,2256.76,0.00014655,2]
[392875117,1762102181042,246.62,0.00014015,2]
[392875118,1762102182898,152.0,0.00014531,3]
[392875119,1762102186598,-601.0,0.00014541,2]
[392875120,1762102186624,-1899.0,0.00014656,2]
[392875121,1762102202485,168.0,0.00014243,2]
[392875122,1762102206700,168.0,0.00014227,2]
[392875126,1762102232152,-1116.115,0.00014556,2]
[392875127,1762102232164,-1252.99600071,0.00014556,2]
[392875132,1762102232259,-1573.82201138,0.00014556,2]
[392875133,1762102232271,-195.0,0.00014575,2]
[392875134,1762102232282,-3801.17798862,0.00014594,2]
[392875135,1762102232315,-141.75502346,0.00014594,2]
[392875136,1762102232324,-3818.55687016,0.00014632,2]
[392875137,1762102232335,-124.37614192,0.00014632,2]
[392875138,1762102232346,-280.770386,0.00014655,2]
[392875139,1762102232358,-919.229614,0.00014655,2]
[392875140,1762102232368,-300.0,0.00014655,2]
[392875141,1762102232377,-353750.83903424,0.00014656,2]
[392875142,1762102232407,-1117.5307461,0.00014656,2]
[392875143,1762102232419,-970.58787106,0.00014656,2]
[392875178,1762102238120,-4288.83897436,0.00014619,2]
[392875179,1762102238131,-312.64799621,0.00014619,2]
[392875180,1762102238142,-1925.73440903,0.00014619,2]
[392875181,1762102238152,-5842.65151352,0.00014656,2]
[392875182,1762102238174,-1436.8940928,0.00014656,2]
[392875183,1762102238188,-7826.9808555,0.00014656,2]
[392875184,1762102238200,-344.83024,0.00014656,2]
[392875185,1762102238229,-596.34361244,0.00014656,2]
[392875186,1762102238405,-2743.14316823,0.00014656,2]
[392875187,1762102238417,-19009.40786611,0.00014656,2]
[392875188,1762102238427,-1000.0,0.00014656,2]
[392875189,1762102238438,-168.0,0.00014664,2]
[392875190,1762102238448,-3942.93301208,0.00014671,2]
[392875191,1762102238458,-500.0,0.00014673,2]
[392875192,1762102238469,-475.52335427,0.00014673,2]
[392875193,1762102238479,-200.0,0.00014673,2]
[392875194,1762102238489,-500.0,0.00014673,2]
[392875195,1762102238501,-500.0,0.00014673,2]
[392875196,1762102238511,-500.0,0.00014673,2]
[392875197,1762102238521,-168.0,0.00014695,2]
[392875198,1762102238531,-3942.93301208,0.00014709,2]
[392875199,1762102238541,-178.0,0.00014725,2]
[392875200,1762102238550,-150.0,0.00014737,2]
[392875201,1762102238560,-3942.93301208,0.00014747,2]
[392875202,1762102238570,-368.34652775,0.00014774,2]
[392875212,1762102240228,-621.64147225,0.00014774,2]
[392875214,1762102240238,-1467.05402468,0.00014785,2]
[392875215,1762102240250,-693.7537393,0.00014785,2]
[392875216,1762102240284,-421.42282622,0.00014785,2]
[392875217,1762102240295,-1360.70242188,0.00014785,2]
[392875218,1762102240306,-173.0,0.00014786,2]
[392875219,1762102240317,-246.62,0.00014794,2]
[392875220,1762102240326,-1286.75257812,0.000148,2]
[392875221,1762102240341,-8102.11654141,0.000148,2]
[392875222,1762102240350,-3942.93301208,0.00014824,2]
[392875223,1762102240360,-601.0,0.00014831,2]
[392875224,1762102240369,-1699.98045,0.0001486,2]
[392875225,1762102240379,-1523.67853186,0.00014861,2]
[392875226,1762102240390,-733.08146814,0.00014861,2]
[392875227,1762102240400,-3942.93301208,0.00014862,2]
[392875228,1762102240409,-2105.2865,0.00014899,2]
[392875229,1762102240418,-166.817646,0.000149,2]
[392875230,1762102240427,-193.94222351,0.000149,2]
[392875231,1762102240437,-639.85007388,0.000149,2]
[392875232,1762102240446,-1119.36494262,0.000149,2]
[392875233,1762102240455,-883.89953378,0.000149,2]
[392875234,1762102240502,-1618.39767798,0.000149,2]
[392875235,1762102240574,-1440.63580032,0.000149,2]
[392875236,1762102240584,-477.45087779,0.00014954,2]
[392875237,1762102240593,-500.0,0.00014973,2]
[392875238,1762102240602,-500.0,0.00014973,2]
[392875239,1762102240611,-500.0,0.00014973,2]
[392875240,1762102240620,-501.61459127,0.00014973,2]
[392875241,1762102240629,-500.0,0.00014973,2]
[392875242,1762102240638,-500.0,0.00014973,2]
[392875243,1762102240647,-500.0,0.00014973,2]
[392875244,1762102240656,-500.0,0.00014973,2]
[392875245,1762102240665,-500.0,0.00014973,2]
[392875246,1762102240673,-500.0,0.00014973,2]
[392875247,1762102240682,-500.0,0.00014973,2]
[392875248,1762102240691,-500.0,0.00014973,2]
[392875249,1762102240700,-500.0,0.00014973,2]
[392875250,1762102240710,-500.0,0.00014973,2]
[392875251,1762102240719,-500.0,0.00014973,2]
[392875253,1762102240727,-500.0,0.00014973,2]
[392875255,1762102240737,-500.0,0.00014973,2]
[392875257,1762102240745,-500.0,0.00014973,2]
[392875259,1762102240754,-636.89072668,0.00014973,2]
[392875261,1762102240763,-500.0,0.00014973,2]
[392875262,1762102240772,-500.0,0.00014973,2]
[392875263,1762102240781,-500.0,0.00014973,2]
[392875264,1762102240790,-159.05500216,0.00014973,2]
[392875265,1762102240799,-500.0,0.00014973,2]
[392875266,1762102240809,-500.0,0.00014973,2]
[392875267,1762102240818,-500.0,0.00014973,2]
[392875268,1762102240826,-500.0,0.00014973,2]
[392875270,1762102240835,-500.0,0.00014973,2]
[392875272,1762102240845,-500.0,0.00014973,2]
[392875273,1762102240854,-500.0,0.00014973,2]
[392875274,1762102240863,-150.0,0.00014986,2]
[392875275,1762102240872,-150.0,0.00014986,2]
[392875276,1762102240882,-150.0,0.00014986,2]
[392875277,1762102240891,-150.0,0.00014986,2]
[392875278,1762102240901,-150.0,0.00014986,2]
[392875279,1762102240910,-150.0,0.00014986,2]
[392875280,1762102240919,-150.0,0.00014986,2]
[392875281,1762102240927,-38768.34701738,0.00014988,2]
[392875282,1762102240939,-1671.02806641,0.00014988,2]
[392875294,1762102243272,-448.09181401,0.00014556,2]
[392875295,1762102243379,-563.8722431,0.00014556,2]
[392875296,1762102243391,-2480.31976365,0.00014556,2]
[392875297,1762102243401,-3928.81536365,0.00014988,2]
[392875300,1762102246216,-1116.0,0.00014594,2]
[392875301,1762102246373,-2376.28382076,0.00014594,2]
[392875302,1762102246383,-3352.82861015,0.00014988,2]
[392875303,1762102246429,-629.10197521,0.00014988,2]
[392875304,1762102246438,-581.21802479,0.00014995,2]
[392875305,1762102246535,-304.76197521,0.00014995,2]
[392875306,1762102246545,-314.25445056,0.00014995,2]
[392875307,1762102246554,-301.70337423,0.00014995,2]
[392875308,1762102322409,-300.0,0.00014555,2]
[392875309,1762102325690,5835.0,0.00014036,2]
[392875311,1762102336396,152.63049321,0.00014082,2]
[392875312,1762102363321,8679.73,0.00013954,2]
[392875313,1762102379950,1290.67,0.00013954,2]
[392875314,1762102406476,168.0,0.0001436,2]
[392875315,1762102407455,54061.6,0.00013935,2]
[392875316,1762102407476,3572.35171507,0.00013935,2]
[392875317,1762102407496,15000.0,0.00013935,2]
[392875318,1762102407515,3842.07828493,0.00013935,2]
[392875319,1762102413174,168.0,0.00014216,2]
[392875321,1762102434738,162.62,0.0001393,2]
[392875322,1762102441503,500.0,0.0001393,2]
[392875323,1762102462939,-500.0,0.00014555,2]
[392875324,1762102462975,-232.45465468,0.00014555,2]
[392875325,1762102463008,-545.0,0.00014555,2]
[392875326,1762102463045,-300.0,0.00014555,2]
[392875327,1762102463079,-150.0,0.00014555,2]
[392875328,1762102515622,1525.02,0.00014501,2]
[392875333,1762102518286,-332.57895463,0.00014555,2]
[392875344,1762102524398,-867.42104537,0.00014555,2]
[392875345,1762102524427,-300.0,0.00014555,2]
[392875346,1762102524458,-300.0,0.00014555,2]
[392875348,1762102529531,999.0,0.00013942,3]
[392875350,1762102561725,300.0,0.00014555,2]
[392875351,1762102571548,172.38685122,0.00014456,2]
[392875352,1762102577778,467.46,0.0001395,2]
[392875353,1762102621637,300.0,0.00014555,2]
[392875354,1762102621718,300.0,0.00014555,2]
[392875355,1762102621755,279.5781,0.00014456,2]
[392875356,1762102621998,150.0,0.00014555,2]
[392875357,1762102626133,151.0,0.00014556,2]
[392875358,1762102627641,578.20924308,0.00014556,2]
[392875359,1762102632675,621.14687548,0.00014556,2]
[392875360,1762102635191,-8435.84843701,0.00014556,2]
[392875361,1762102642126,-10000.01,0.00014556,2]
[392875362,1762102645537,277.35679052,0.00014556,2]
[392875363,1762102652874,-50000.0,0.00014556,2]
[392875364,1762102657455,-20000.0,0.00014556,2]
[392875366,1762102658421,-20000.0,0.00014556,2]
[392875367,1762102659120,-20000.0,0.00014556,2]
[392875368,1762102659913,-20000.0,0.00014556,2]
[392875369,1762102661203,-20000.0,0.00014556,2]
[392875370,1762102663993,221.07278796,0.00014483,2]
[392875371,1762102669124,250.0,0.00014005,2]
[392875372,1762102694110,-11616.61266299,0.00014556,2]
[392875373,1762102694134,-1000.0,0.00014556,2]
[392875374,1762102694157,-972.4764,0.00014556,2]
[392875375,1762102694181,-2500.0,0.00014556,2]
[392875376,1762102694205,-195.0,0.00014584,2]
[392875377,1762102694228,-221.66766337,0.00014613,2]
[392875378,1762102694256,-494.24327364,0.00014655,2]
[392875379,1762102777457,-893.21759391,0.00014542,2]
[392875380,1762102777482,-5.75672636,0.00014655,2]
[392875381,1762102777505,-575.48368105,0.00014655,2]
[392875382,1762102777528,-500.0,0.00014655,2]
[392875383,1762102777550,-217.04958705,0.00014686,2]
[392875384,1762102811357,608.49241163,0.00014456,2]
[392875385,1762102811384,50772.24598837,0.00014456,2]
[392875386,1762102828487,1000.0,0.00014456,2]
[392875387,1762102836394,1031.0,0.00014362,2]
[392875388,1762102841328,1031.0,0.00014339,2]
[392875389,1762102852674,905.0,0.000149,3]
[392875390,1762102901191,-1031.0,0.00014579,2]
[392875391,1762102901220,-344.59206994,0.00014686,2]
[392875392,1762102901246,-232.93328635,0.00014686,2]
[392875393,1762102901275,-391.47464371,0.00014811,2]
[392875394,1762102951198,155.263093,0.00014999,8]
[392875395,1762102954958,1852.42,0.00014,2]
[392875396,1762102963923,151.872833,0.00014999,8]
[392875397,1762102976040,166.49387,0.00014999,8]
[392875398,1762102976402,166.49387,0.00014999,8]
[392875399,1762102984661,-300.0,0.00014644,2]
[392875400,1762102984682,-300.0,0.00014644,2]
[392875401,1762102984703,-9400.0,0.00014645,2]
[392875402,1762103015489,150.0,0.00013987,2]
[392875403,1762103015695,150.0,0.00013987,120]
[392875404,1762103019672,15000.0,0.00014,10]
[392875405,1762103028578,166.67,0.00014413,2]
[392875406,1762103047732,1851.614486,7.945e-05,2]
[392875407,1762103088490,832.52,0.00013993,2]
[392875408,1762103110546,3622.34,0.00014,2]
[392875409,1762103112541,3622.34,0.00014,2]
[392875410,1762103114105,150.0,0.00013488,2]
[392875411,1762103114175,150.0,0.00013488,2]
[392875412,1762103114408,150.0,0.00013488,2]
[392875413,1762103114692,3622.34,0.00014,2]
[392875414,1762103114730,151.00160076,0.00013488,2]
[392875415,1762103117148,3622.34,0.00014,2]
[392875416,1762103117685,150.0,0.00013488,2]
[392875417,1762103119262,239.01405512,0.00030137,120]
[392875418,1762103119865,3622.34,0.00014,2]
[392875419,1762103120955,150.0,0.00013488,2]
[392875420,1762103121058,150.0,0.00013488,2]
[392875421,1762103121177,150.0,0.00013488,2]
[392875422,1762103124111,150.0,0.00013488,2]
[392875423,1762103124239,150.00000001,0.00013488,2]
[392875424,1762103127465,150.97585933,0.00013488,2]
[392875425,1762103127557,151.28843054,0.00013488,2]
[392875426,1762103127621,150.0,0.00013488,2]
[392875427,1762103132991,150.0,0.00013488,2]
[392875428,1762103133035,150.0,0.00014237,2]
[392875429,1762103133217,150.0,0.00013488,2]
[392875430,1762103134569,150.0,0.00013488,2]
[392875431,1762103139731,85778.26,0.0001399,2]
[392875437,1762103427727,10847.87,0.00013965,2]
[392875444,1762103431450,-195.0,0.00014583,2]
[392875445,1762103431461,-105.0,0.00014609,2]
[392875446,1762103431472,-788.21759391,0.00014609,2]
[392875447,1762103431481,-221.66766337,0.00014629,2]
[392875448,1762103431491,-966.4093274,0.00014645,2]
[392875449,1762103431500,-2500.0,0.00014666,2]
[392875450,1762103431510,-190.75300357,0.00014687,2]
[392875451,1762103431519,-1000.0,0.00014728,2]
[392875452,1762103431528,-400.51535629,0.00014811,2]
[392875453,1762103431538,-229.72804662,0.00014811,2]
[392875454,1762103431547,-1200.0,0.00014839,2]
[392875455,1762103431557,-150.0,0.0001484,2]
[392875456,1762103431566,-79.8329132,0.0001484,2]
[392875457,1762103431578,-220.1670868,0.0001484,2]
[392875458,1762103431587,-905.94,0.00014841,2]
[392875459,1762103431599,-200.0,0.00014841,2]
[392875460,1762103431613,-250.0,0.00014841,2]
[392875461,1762103431623,-250.0,0.00014841,2]
[392875462,1762103431632,-496.47127164,0.00014841,2]
[392875463,1762103431642,-500.0,0.00014841,2]
[392875464,1762103431654,-151.0,0.00014841,2]
[392875465,1762103431663,-160.4251979,0.00014841,2]
[392875466,1762103431674,-250.0,0.00014841,2]
[392875467,1762103431683,-250.0,0.00014841,2]
[392875468,1762103431692,-500.0,0.00014841,2]
[392875469,1762103431702,-151.0,0.00014841,2]
[392875470,1762103431711,-250.0,0.00014841,2]
[392875471,1762103431720,-47.88882613,0.00014841,2]
[392875472,1762103431743,-202.11117387,0.00014841,2]
[392875473,1762103431752,-500.0,0.00014841,2]
[392875474,1762103431761,-151.0,0.00014841,2]
[392875475,1762103431770,-147.97877119,0.00014841,2]
[392875476,1762103431781,-102.02122881,0.00014841,2]
[392875477,1762103431790,-245.41385185,0.00014841,2]
[392875478,1762103431805,-4.58614815,0.00014841,2]
[392875479,1762103431814,-500.0,0.00014841,2]
[392875480,1762103431823,-151.0,0.00014841,2]
[392875481,1762103431832,-250.0,0.00014841,2]
[392875482,1762103431842,-250.0,0.00014841,2]
[392875483,1762103431851,-500.0,0.00014841,2]
[392875484,1762103431860,-151.0,0.00014841,2]
[392875485,1762103431869,-646.65982734,0.00014841,2]
[392875486,1762103431878,-250.0,0.00014841,2]
[392875487,1762103431887,-259.21052367,0.00014841,2]
[392875488,1762103431925,-240.78947633,0.00014841,2]
[392875489,1762103431935,-151.0,0.00014841,2]
[392875491,1762103431944,-200.0,0.00014841,2]
[392875493,1762103431954,-250.0,0.00014841,2]
[392875495,1762103431963,-250.0,0.00014841,2]
[392875497,1762103431972,-250.0,0.00014841,2]
[392875499,1762103431981,-500.0,0.00014841,2]
[392875501,1762103431990,-151.0,0.00014841,2]
[392875503,1762103431999,-250.0,0.00014841,2]
[392875505,1762103432009,-250.0,0.00014841,2]
[392875507,1762103432018,-250.0,0.00014841,2]
[392875509,1762103432027,-500.0,0.00014841,2]
[392875511,1762103432036,-151.0,0.00014841,2]
[392875513,1762103432045,-250.0,0.00014841,2]
[392875515,1762103432054,-250.0,0.00014841,2]
[392875517,1762103432064,-250.0,0.00014841,2]
[392875519,1762103432073,-426.88887428,0.00014841,2]
[392875521,1762103432084,-73.11112572,0.00014841,2]
[392875523,1762103432093,-250.0,0.00014841,2]
[392875525,1762103432103,-233.64507428,0.00014841,2]
[392875527,1762103432114,-16.35492572,0.00014841,2]
[392875529,1762103432123,-151.0,0.00014841,2]
[392875531,1762103432132,-250.0,0.00014841,2]
[392875532,1762103432142,-284.25893564,0.00014841,2]
[392875533,1762103432164,-215.74106436,0.00014841,2]
[392875534,1762103432173,-187.32047022,0.00014841,2]
[392875538,1762103437288,-229.72804663,0.00014841,2]
[392875540,1762103437298,-62.67952978,0.00014841,2]
[392875541,1762103437307,-250.0,0.00014841,2]
[392875542,1762103437316,-151.0,0.00014841,2]
[392875543,1762103437325,-250.0,0.00014841,2]
[392875544,1762103437334,-500.0,0.00014841,2]
[392875545,1762103437343,-382.2618413,0.00014841,2]
[392875546,1762103437352,-151.0,0.00014841,2]
[392875547,1762103437362,-250.0,0.00014841,2]
[392875548,1762103437371,-500.0,0.00014841,2]
[392875549,1762103437380,-151.0,0.00014841,2]
[392875550,1762103437389,-250.0,0.00014841,2]
[392875551,1762103437398,-250.0,0.00014841,2]
[392875552,1762103437407,-151.0,0.00014841,2]
[392875553,1762103437417,-151.0,0.00014841,2]
[392875554,1762103437426,-151.0,0.00014841,2]
[392875555,1762103437435,-250.0,0.00014841,2]
[392875556,1762103437443,-151.0,0.00014841,2]
[392875557,1762103437453,-620.0,0.00014841,2]
[392875558,1762103437463,-500.0,0.00014841,2]
[392875559,1762103437473,-250.0,0.00014841,2]
[392875560,1762103437482,-151.0,0.00014841,2]
[392875561,1762103437492,-500.0,0.00014841,2]
[392875562,1762103437501,-264.71289074,0.00014841,2]
[392875563,1762103437510,-151.0,0.00014841,2]
[392875564,1762103437520,-500.0,0.00014841,2]
[392875565,1762103437529,-151.0,0.00014841,2]
[392875566,1762103437538,-500.0,0.00014841,2]
[392875567,1762103437548,-500.0,0.00014841,2]
[392875568,1762103437557,-151.0,0.00014841,2]
[392875570,1762103437567,-500.0,0.00014841,2]
[392875571,1762103437576,-151.0,0.00014841,2]
[392875572,1762103437585,-500.0,0.00014841,2]
[392875573,1762103437594,-151.0,0.00014841,2]
[392875574,1762103437606,-500.0,0.00014841,2]
[392875575,1762103437616,-500.0,0.00014841,2]
[392875576,1762103437625,-151.0,0.00014841,2]
[392875577,1762103437635,-500.0,0.00014841,2]
[392875578,1762103437644,-500.0,0.00014841,2]
[392875579,1762103437655,-151.0,0.00014841,2]
[392875580,1762103437664,-500.0,0.00014841,2]
[392875581,1762103437673,-182.38152589,0.00014841,2]
[392875582,1762103437682,-500.0,0.00014841,2]
[392875583,1762103437692,-500.0,0.00014841,2]
[392875584,1762103437702,-153.34827778,0.00014841,2]
[392875585,1762103437711,-500.0,0.00014841,2]
[392875586,1762103437720,-500.0,0.00014841,2]
[392875587,1762103437729,-500.0,0.00014841,2]
[392875588,1762103437738,-322.6107,0.00014841,2]
[392875589,1762103437747,-500.0,0.00014841,2]
[392875590,1762103437757,-500.0,0.00014841,2]
[392875591,1762103437767,-500.0,0.00014841,2]
[392875592,1762103437777,-250.0,0.00014841,2]
[392875593,1762103437786,-500.0,0.00014841,2]
[392875594,1762103437796,-250.0,0.00014841,2]
[392875595,1762103437806,-250.0,0.00014841,2]
[392875596,1762103437815,-250.0,0.00014841,2]
[392875597,1762103437824,-250.0,0.00014841,2]
[392875598,1762103437834,-250.0,0.00014841,2]
[392875599,1762103437843,-500.0,0.00014841,2]
[392875600,1762103437853,-250.0,0.00014841,2]
[392875601,1762103437862,-500.0,0.00014841,2]
[392875602,1762103437871,-250.0,0.00014841,2]
[392875603,1762103437881,-500.0,0.00014841,2]
[392875604,1762103437891,-250.0,0.00014841,2]
[392875605,1762103437900,-209.40437684,0.00014841,2]
[392875606,1762103437910,-500.0,0.00014841,2]
[392875607,1762103437920,-500.0,0.00014841,2]
[392875608,1762103437929,-250.0,0.00014841,2]
[392875609,1762103437939,-250.0,0.00014841,2]
[392875610,1762103437948,-537.42535851,0.00014841,2]